fUSD/lending_fUSD_20240910
["ID","MTS","AMOUNT","RATE_DAILY","PERIOD"]
[337681921,1725952248585,-3645.13,0.00012275,2]
[337681922,1725952248594,-3004.76,0.00012275,2]
[337681923,1725952248604,-4178.35,0.00012275,2]
[337681924,1725952248613,-2945.82,0.00012275,2]
[337681925,1725952248623,-3746.32,0.00012275,2]
[337681926,1725952248632,-47929.29,0.00012275,2]
[337681927,1725952248642,-7338.63,0.00012275,2]
[337681928,1725952248744,-652.98,0.00012275,2]
[337681929,1725952248754,-1622.34,0.00012275,2]
[337681930,1725952248763,-1667.59,0.00012275,2]
[337681931,1725952248773,-1537.35,0.00012275,2]
[337681932,1725952248782,-1293.18,0.00012275,2]
[337681933,1725952248791,-3474.04,0.00012275,2]
[337681934,1725952248800,-1201.6,0.00012275,2]
[337681935,1725952248810,-10176.11,0.00012275,2]
[337681936,1725952248819,-895.61,0.00012275,2]
[337681937,1725952248828,-1968.04,0.00012275,2]
[337681938,1725952248837,-9873.08,0.00012275,2]
[337681939,1725952248846,-1097.74,0.00012275,2]
[337681940,1725952248855,-3985.71,0.00012275,2]
[337681941,1725952248865,-1312.23,0.00012275,2]
[337681942,1725952248875,-7195.74,0.00012275,2]
[337681943,1725952248884,-7023.14,0.00012275,2]
[337681944,1725952248893,-610.88819634,0.00012276,2]
[337681945,1725952248903,-500.0,0.00012276,2]
[337681946,1725952248912,-500.0,0.00012276,2]
[337681947,1725952248921,-1948.25,0.00012276,2]
[337681948,1725952248930,-500.0,0.00012276,2]
[337681949,1725952248940,-2220.52,0.00012276,2]
[337681950,1725952248949,-1506.73,0.00012276,2]
[337681951,1725952248958,-500.0,0.00012276,2]
[337681952,1725952248967,-793.96,0.00012276,2]
[337681953,1725952248976,-500.0,0.00012276,2]
[337681954,1725952248985,-1250.73,0.00012276,2]
[337681955,1725952248995,-500.0,0.00012276,2]
[337681956,1725952249006,-500.0,0.00012276,2]
[337681957,1725952249015,-2340.02,0.00012276,2]
[337681958,1725952249024,-1552.54,0.00012276,2]
[337681959,1725952249038,-500.0,0.00012276,2]
[337681960,1725952249047,-1090.51,0.00012276,2]
[337681961,1725952249057,-500.0,0.00012276,2]
[337681962,1725952249066,-555.45,0.00012276,2]
[337681963,1725952249075,-2048.39,0.00012276,2]
[337681964,1725952249084,-500.0,0.00012276,2]
[337681965,1725952249093,-500.0,0.00012276,2]
[337681966,1725952249102,-620.37312324,0.00012276,2]
[337681967,1725952249112,-717.91,0.00012276,2]
[337681968,1725952249121,-1672.52,0.00012276,2]
[337681969,1725952249131,-500.0,0.00012276,2]
[337681970,1725952249142,-500.0,0.00012276,2]
[337681971,1725952249151,-3001.02,0.00012276,2]
[337681972,1725952249160,-500.0,0.00012276,2]
[337681973,1725952249170,-1323.36,0.00012276,2]
[337681974,1725952249179,-500.0,0.00012276,2]
[337681975,1725952249188,-500.0,0.00012276,2]
[337681976,1725952249198,-1844.56,0.00012276,2]
[337681977,1725952249207,-500.0,0.00012276,2]
[337681978,1725952249216,-415.2136506,0.00012276,2]
[337681979,1725952249226,-500.0,0.00012276,2]
[337681980,1725952249235,-500.0,0.00012276,2]
[337681981,1725952249245,-500.0,0.00012276,2]
[337681982,1725952249254,-500.0,0.00012276,2]
[337681983,1725952249263,-1544.84,0.00012276,2]
[337681984,1725952249273,-500.0,0.00012276,2]
[337681985,1725952249283,-1531.09,0.00012276,2]
[337681986,1725952249292,-2724.94,0.00012276,2]
[337681987,1725952249301,-500.0,0.00012276,2]
[337681988,1725952249310,-500.0,0.00012276,2]
[337681989,1725952249319,-2801.52,0.00012276,2]
[337681990,1725952249329,-1381.25,0.00012276,2]
[337681991,1725952249338,-1514.81,0.00012276,2]
[337681992,1725952249347,-1265.91,0.00012276,2]
[337681993,1725952249356,-500.0,0.00012276,2]
[337681994,1725952249366,-3235.76,0.00012276,2]
[337681995,1725952249375,-500.0,0.00012276,2]
[337681996,1725952249384,-1190.4,0.00012276,2]
[337681997,1725952249396,-500.0,0.00012276,2]
[337681998,1725952249405,-1077.75,0.00012276,2]
[337681999,1725952249414,-500.0,0.00012276,2]
[337682000,1725952249423,-576.67,0.00012276,2]
[337682001,1725952249433,-1449.14,0.00012276,2]
[337682002,1725952249442,-500.0,0.00012276,2]
[337682003,1725952249451,-6841.33,0.00012276,2]
[337682004,1725952249460,-9466.13,0.00012276,2]
[337682005,1725952249470,-537.88130914,0.00012276,2]
[337682006,1725952249479,-500.0,0.00012276,2]
[337682007,1725952249488,-500.0,0.00012276,2]
[337682008,1725952249498,-500.0,0.00012276,2]
[337682009,1725952249507,-588.63,0.00012276,2]
[337682010,1725952249516,-500.0,0.00012276,2]
[337682011,1725952249525,-261.47211964,0.00012276,2]
[337682012,1725952249535,-7368.49,0.00012276,2]
[337682013,1725952249544,-864.53,0.00012276,2]
[337682014,1725952249553,-9386.24,0.00012276,2]
[337682015,1725952249563,-3958.44,0.00012276,2]
[337682016,1725952249572,-5018.27,0.00012276,2]
[337682017,1725952249581,-8672.71,0.00012276,2]
[337682018,1725952249590,-500.0,0.00012276,2]
[337682019,1725952249599,-500.0,0.00012276,2]
[337682020,1725952249608,-3199.79,0.00012276,2]
[337682021,1725952249618,-500.0,0.00012276,2]
[337682022,1725952249627,-1416.64,0.00012276,2]
[337682023,1725952249637,-597.7,0.00012276,2]
[337682024,1725952249646,-3281.98,0.00012276,2]
[337682025,1725952249657,-1288.74,0.00012276,2]
[337682026,1725952249666,-6617.85,0.00012276,2]
[337682027,1725952249675,-500.0,0.00012276,2]
[337682028,1725952249684,-2924.69,0.00012276,2]
[337682029,1725952249694,-500.0,0.00012276,2]
[337682030,1725952249704,-3710.01,0.00012276,2]
[337682031,1725952249714,-3326.36,0.00012276,2]
[337682032,1725952249723,-1198.51,0.00012276,2]
[337682033,1725952249733,-8279.02,0.00012276,2]
[337682034,1725952249742,-989.12,0.00012276,2]
[337682035,1725952249751,-845.52,0.00012276,2]
[337682036,1725952249761,-5591.74,0.00012276,2]
[337682037,1725952249770,-500.0,0.00012276,2]
[337682038,1725952249779,-673.47,0.00012276,2]
[337682039,1725952249789,-2541.92,0.00012276,2]
[337682040,1725952249799,-3611.56,0.00012276,2]
[337682041,1725952249808,-1901.25,0.00012276,2]
[337682042,1725952249818,-1188.88,0.00012276,2]
[337682043,1725952249827,-69487.54,0.00012276,2]
[337682044,1725952249837,-6010.41,0.00012276,2]
[337682045,1725952249847,-1154.38,0.00012276,2]
[337682046,1725952249857,-500.0,0.00012276,2]
[337682047,1725952249867,-1929.65,0.00012276,2]
[337682048,1725952249876,-3181.66,0.00012276,2]
[337682049,1725952249886,-431.23209663,0.00012276,2]
[337682050,1725952249895,-2775.67,0.00012276,2]
[337682051,1725952249904,-500.0,0.00012276,2]
[337682052,1725952249913,-3528.08,0.00012276,2]
[337682053,1725952249923,-500.0,0.00012276,2]
[337682054,1725952249932,-631.94,0.00012276,2]
[337682055,1725952249942,-3961.83,0.00012276,2]
[337682056,1725952249951,-500.0,0.00012276,2]
[337682057,1725952249960,-2614.4,0.00012276,2]
[337682058,1725952249969,-927.45,0.00012277,2]
[337682059,1725952249979,-303.6140019,0.00012277,2]
[337682060,1725952249988,-500.0,0.00012277,2]
[337682061,1725952249998,-500.0,0.00012277,2]
[337682062,1725952250008,-1330.32,0.00012277,2]
[337682063,1725952250017,-638.06,0.00012277,2]
[337682064,1725952250027,-1656.24,0.00012277,2]
[337682065,1725952250038,-500.34148832,0.00012277,2]
[337682066,1725952250047,-622.08,0.00012277,2]
[337682067,1725952250057,-500.0,0.00012277,2]
[337682068,1725952250066,-1473.56,0.00012277,2]
[337682069,1725952250077,-500.0,0.00012277,2]
[337682070,1725952250086,-500.0,0.00012277,2]
[337682071,1725952250095,-549.90267819,0.00012277,2]
[337682072,1725952250104,-500.0,0.00012277,2]
[337682073,1725952250113,-500.0,0.00012277,2]
[337682074,1725952250122,-1522.79,0.00012277,2]
[337682075,1725952250132,-500.0,0.00012277,2]
[337682076,1725952250142,-500.0,0.00012277,2]
[337682077,1725952250150,-529.2,0.00012277,2]
[337682078,1725952250156,-3136.04,0.00012277,2]
[337682079,1725952250165,-2932.4,0.00012277,2]
[337682080,1725952250175,-1943.68,0.00012277,2]
[337682081,1725952250184,-500.0,0.00012277,2]
[337682082,1725952250194,-1097.24,0.00012277,2]
[337682083,1725952250203,-1298.53,0.00012277,2]
[337682084,1725952250213,-2502.53,0.00012277,2]
[337682085,1725952250222,-1020.0,0.00012277,2]
[337682086,1725952250232,-500.0,0.00012277,2]
[337682087,1725952250241,-922.91,0.00012277,2]
[337682088,1725952250251,-500.0,0.00012277,2]
[337682089,1725952250261,-758.29,0.00012277,2]
[337682090,1725952250270,-1585.01,0.00012277,2]
[337682091,1725952250280,-996.17,0.00012277,2]
[337682092,1725952250290,-1228.04,0.00012277,2]
[337682093,1725952250299,-3718.96,0.00012277,2]
[337682094,1725952250309,-4797.62,0.00012277,2]
[337682095,1725952250318,-499.99,0.00012277,2]
[337682096,1725952250328,-1057.61,0.00012277,2]
[337682097,1725952250339,-586.18,0.00012277,2]
[337682098,1725952250348,-500.0,0.00012277,2]
[337682099,1725952250358,-500.0,0.00012277,2]
[337682100,1725952250367,-2321.35,0.00012277,2]
[337682101,1725952250377,-500.0,0.00012277,2]
[337682102,1725952250388,-500.0,0.00012277,2]
[337682103,1725952250398,-5305.51,0.00012277,2]
[337682104,1725952250407,-5757.14,0.00012277,2]
[337682105,1725952250417,-3479.04,0.00012277,2]
[337682106,1725952250427,-500.0,0.00012277,2]
[337682107,1725952250437,-6376.98,0.00012277,2]
[337682108,1725952250447,-500.0,0.00012277,2]
[337682109,1725952250456,-5713.88,0.00012277,2]
[337682110,1725952250467,-8028.47,0.00012277,2]
[337682111,1725952250478,-1652.97,0.00012277,2]
[337682112,1725952250488,-1426.2,0.00012277,2]
[337682113,1725952250497,-194.72636477,0.00012277,2]
[337682114,1725952250507,-12662.64,0.00012277,2]
[337682115,1725952250517,-62394.46,0.00012277,2]
[337682116,1725952250526,-11020.68,0.00012277,2]
[337682117,1725952250535,-1904.97,0.00012277,2]
[337682118,1725952250544,-26791.1,0.00012277,2]
[337682119,1725952250554,-500.0,0.00012277,2]
[337682120,1725952250563,-4762.88,0.00012277,2]
[337682121,1725952250573,-2295.5,0.00012277,2]
[337682122,1725952250582,-5807.01,0.00012277,2]
[337682123,1725952250591,-4570.9,0.00012277,2]
[337682124,1725952250600,-972.68,0.00012277,2]
[337682125,1725952250609,-2143.5,0.00012277,2]
[337682126,1725952250619,-2811.86,0.00012277,2]
[337682127,1725952250628,-1230.65086,0.00012278,2]
[337682128,1725952250638,-1000.0,0.00012329,2]
[337682129,1725952250647,-1000.0,0.00012329,2]
[337682130,1725952250657,-1000.0,0.00012329,2]
[337682131,1725952250666,-1000.0,0.00012329,2]
[337682132,1725952250675,-1000.0,0.00012329,2]
[337682133,1725952250684,-1000.0,0.00012329,2]
[337682134,1725952250693,-1000.0,0.00012329,2]
[337682135,1725952250703,-1000.0,0.00012329,2]
[337682136,1725952250712,-1000.0,0.00012329,2]
[337682137,1725952250721,-1000.0,0.00012329,2]
[337682138,1725952250730,-1000.0,0.00012329,2]
[337682139,1725952250739,-1000.0,0.00012329,2]
[337682140,1725952250748,-1000.0,0.00012329,2]
[337682141,1725952250759,-1000.0,0.00012329,2]
[337682142,1725952250768,-1000.0,0.00012329,2]
[337682143,1725952250778,-151.0,0.00012329,2]
[337682144,1725952250788,-151.0,0.00012329,2]
[337682145,1725952250798,-151.0,0.00012329,2]
[337682146,1725952250807,-151.0,0.00012329,2]
[337682147,1725952250817,-151.0,0.00012329,2]
[337682148,1725952250826,-151.0,0.00012329,2]
[337682149,1725952250836,-151.0,0.00012329,2]
[337682150,1725952250845,-151.0,0.00012329,2]
[337682151,1725952250854,-151.0,0.00012329,2]
[337682152,1725952250864,-242.500293,0.00012329,2]
[337682153,1725952250873,-151.0,0.00012329,2]
[337682154,1725952250882,-151.0,0.00012329,2]
[337682155,1725952250891,-151.0,0.00012329,2]
[337682156,1725952250900,-151.0,0.00012329,2]
[337682157,1725952250910,-151.0,0.00012329,2]
[337682158,1725952250919,-151.0,0.00012329,2]
[337682159,1725952250928,-151.0,0.00012329,2]
[337682160,1725952250937,-151.0,0.00012329,2]
[337682161,1725952250946,-308.193745,0.00012329,2]
[337682162,1725952250955,-308.193745,0.00012329,2]
[337682163,1725952250967,-308.193745,0.00012329,2]
[337682164,1725952250976,-308.193745,0.00012329,2]
[337682165,1725952250986,-308.193745,0.00012329,2]
[337682166,1725952250995,-308.193745,0.00012329,2]
[337682167,1725952251004,-308.193745,0.00012329,2]
[337682168,1725952251014,-484.768029,0.00012329,2]
[337682169,1725952251024,-308.193745,0.00012329,2]
[337682170,1725952251034,-484.768029,0.00012329,2]
[337682171,1725952251043,-308.193745,0.00012329,2]
[337682172,1725952251052,-484.768029,0.00012329,2]
[337682173,1725952251062,-484.768029,0.00012329,2]
[337682174,1725952251071,-308.193745,0.00012329,2]
[337682175,1725952251081,-484.768029,0.00012329,2]
[337682176,1725952251090,-484.768029,0.00012329,2]
[337682177,1725952251100,-484.768029,0.00012329,2]
[337682178,1725952251109,-484.768029,0.00012329,2]
[337682179,1725952251119,-484.768029,0.00012329,2]
[337682180,1725952251128,-484.768029,0.00012329,2]
[337682181,1725952251138,-296.97164,0.00012329,2]
[337682182,1725952251147,-151.0,0.00012329,2]
[337682183,1725952251157,-151.0,0.00012329,2]
[337682184,1725952251166,-22264.98208702,0.00012351,2]
[337682185,1725952251176,-829.58,0.00012351,2]
[337682186,1725952251185,-151.0,0.00012351,2]
[337682187,1725952251195,-958.21387493,0.00012359,2]
[337682188,1725952251205,-1230.65086,0.0001237,2]
[337682189,1725952251214,-2506.68035058,0.00012379,2]
[337682190,1725952251224,-796.0,0.00012383,2]
[337682191,1725952251233,-711.0,0.000124,2]
[337682192,1725952251243,-163386.59631471,0.000124,2]
[337682193,1725952281223,222.15,0.00011504,2]
[337682194,1725952304036,462.42,9.573e-05,2]
[337682195,1725952304426,462.42,0.00011837,2]
[337682196,1725952340365,150.0,0.00010959,2]
[337682197,1725952340815,150.0,0.00010959,2]
[337682198,1725952340841,135.88,0.00010959,2]
[337682199,1725952351007,150.0,0.00010959,2]
[337682200,1725952351031,150.0,0.00010959,2]
[337682201,1725952351058,63.24,0.00010959,2]
[337682202,1725952356063,150.0,7.781e-05,7]
[337682203,1725952356084,150.0,7.781e-05,7]
[337682204,1725952356105,150.0,7.781e-05,7]
[337682205,1725952356126,150.0,7.781e-05,7]
[337682206,1725952356146,150.0,7.781e-05,7]
[337682207,1725952356169,150.0,7.781e-05,7]
[337682208,1725952356190,150.0,7.781e-05,7]
[337682209,1725952356209,112.50949448,7.781e-05,7]
[337682210,1725952357255,71.12734083,7.781e-05,7]
[337682211,1725952357275,150.0,7.781e-05,7]
[337682212,1725952357296,150.0,7.781e-05,7]
[337682213,1725952357316,150.0,7.781e-05,7]
[337682214,1725952357337,135.10265896,7.781e-05,7]
[337682215,1725952360243,289.19,0.00011464,2]
[337682216,1725952361434,302.7,0.00010959,2]
[337682217,1725952368942,-1285.0,0.0001206,2]
[337682218,1725952371947,150.0,0.00010959,2]
[337682219,1725952371970,102.25,0.00010959,2]
[337682220,1725952379636,500.0,0.0001046,2]
[337682221,1725952380039,500.0,0.0001046,2]
[337682222,1725952380106,500.0,0.0001046,2]
[337682223,1725952380344,150.0,0.0001046,2]
[337682224,1725952382466,150.0,0.00010959,2]
[337682225,1725952382487,60.21,0.00010959,2]
[337682226,1725952393007,175.17,0.00010959,2]
[337682227,1725952393168,200.0,0.0001147,2]
[337682228,1725952396998,150.0,0.0001147,2]
[337682229,1725952399901,150.0,0.00011413,2]
[337682230,1725952399923,50.0,0.00011413,2]
[337682231,1725952399995,100.0,0.000101,5]
[337682232,1725952400017,150.0,0.000101,5]
[337682233,1725952400039,150.0,0.000101,5]
[337682234,1725952400060,135.0,0.000101,5]
[337682235,1725952400343,15.0,0.00011476,2]
[337682236,1725952400364,150.0,0.00011476,2]
[337682237,1725952400385,150.0,0.00011476,2]
[337682238,1725952400406,150.0,0.00011476,2]
[337682239,1725952400428,150.0,0.00011476,2]
[337682240,1725952400453,150.0,0.00011476,2]
[337682241,1725952400474,75.0,0.00011476,2]
[337682242,1725952403539,150.0,0.00010959,2]
[337682243,1725952403561,150.0,0.00010959,2]
[337682244,1725952403585,150.0,0.00010959,2]
[337682245,1725952403606,150.0,0.00010959,2]
[337682246,1725952403629,150.0,0.00010959,2]
[337682247,1725952403656,125.88,0.00010959,2]
[337682248,1725952407036,1486.67,0.00011476,2]
[337682249,1725952421193,150.0,0.00011476,2]
[337682250,1725952421215,39.94,0.00011476,2]
[337682251,1725952421459,110.06,0.00011476,2]
[337682252,1725952421481,150.0,0.00011476,2]
[337682253,1725952421502,150.0,0.00011476,2]
[337682254,1725952421524,251.55734104,0.00011476,2]
[337682255,1725952421545,51.29265896,0.00011476,2]
[337682256,1725952427399,250.0,0.00011465,2]
[337682259,1725952488612,150.0,0.00011455,2]
[337682260,1725952488632,64.28,0.00011455,2]
[337682261,1725952488777,150.0,0.00011465,2]
[337682262,1725952488797,150.0,0.00011465,2]
[337682263,1725952488817,150.0,0.00011465,2]
[337682264,1725952488836,50.0,0.00011465,2]
[337682265,1725952488862,100.0,0.00011465,2]
[337682266,1725952488882,131.0,0.00011465,2]
[337682267,1725952489093,150.0,0.00011465,2]
[337682268,1725952489113,150.0,0.00011465,2]
[337682269,1725952489133,150.0,0.00011465,2]
[337682270,1725952489154,50.0,0.00011465,2]
[337682271,1725952527073,150.0,0.00011408,2]
[337682272,1725952527098,50.0,0.00011408,2]
[337682273,1725952538392,150.0,0.00011465,2]
[337682274,1725952538416,150.0,0.00011465,2]
[337682275,1725952538439,102.97,0.00011465,2]
[337682276,1725952545615,600.0,7.781e-05,7]
[337682277,1725952562758,250.0,0.00011461,2]
[337682278,1725952563093,442.7,0.00011461,2]
[337682279,1725952590377,157.95,0.00011461,2]
[337682280,1725952606012,150.0,0.00011451,2]
[337682281,1725952606039,0.41,0.00011451,2]
[337682282,1725952611568,239.87,0.00010959,2]
[337682283,1725952627761,150.0,0.00011432,2]
[337682284,1725952627782,19.85,0.00011432,2]
[337682285,1725952635345,150.0,0.00011432,2]
[337682286,1725952635367,50.0,0.00011432,2]
[337682287,1725952654507,150.0,0.00011375,2]
[337682288,1725952654529,1.39949522,0.00011375,2]
[337682289,1725952688869,500.0,0.00011422,2]
[337682290,1725952694602,228.79784582,0.00011431,2]
[337682291,1725952694629,485.53215418,0.00011431,2]
[337682292,1725952694819,714.33,0.00011434,2]
[337682293,1725952695120,714.33,0.00011437,2]
[337682294,1725952695288,714.33,0.0001144,2]
[337682295,1725952695492,714.33,0.00011443,2]
[337682296,1725952695723,714.33,0.00011446,2]
[337682297,1725952695957,714.33,0.00011449,2]
[337682298,1725952696167,714.33,0.00011452,2]
[337682299,1725952696390,714.33,0.00011455,2]
[337682300,1725952696583,714.33,0.00011458,2]
[337682301,1725952696784,714.33,0.00011461,2]
[337682302,1725952696987,714.33,0.00011464,2]
[337682303,1725952697197,714.33,0.00011467,2]
[337682304,1725952697429,714.33,0.0001147,2]
[337682305,1725952697634,714.33,0.00011473,2]
[337682306,1725952697834,714.33,0.00011476,2]
[337682307,1725952698061,714.33,0.00011479,2]
[337682308,1725952698348,714.33,0.00011482,2]
[337682309,1725952698554,714.33,0.00011485,2]
[337682310,1725952698787,714.33,0.00011488,2]
[337682311,1725952699235,172.99,9.148e-05,2]
[337682312,1725952699763,172.99,0.00010672,2]
[337682313,1725952705860,218.38,0.00011424,2]
[337682314,1725952716497,186.7,0.00011424,2]
[337682315,1725952798713,238.56,0.00011374,2]
[337682316,1725952802282,150.0,0.00011424,2]
[337682317,1725952802464,150.0,0.00011424,2]
[337682318,1725952802671,150.0,0.00011424,2]
[337682319,1725952802824,231.283043,0.00011424,2]
[337682320,1725952807577,150.0,0.00012006,2]
[337682321,1725952807598,4.25,0.00012006,2]
[337682322,1725952826029,150.0,9.477e-05,2]
[337682323,1725952826053,150.0,9.477e-05,2]
[337682324,1725952826074,295.75,9.477e-05,2]
[337682325,1725952826240,454.84,9.477e-05,2]
[337682326,1725952826379,1050.59,0.00011741,2]
[337682327,1725952834200,151.56,0.00011382,2]
[337682328,1725952866796,300.0,0.00011372,2]
[337682380,1725952888525,150.0,0.00011359,2]
[337682417,1725952917214,222.16,0.00011365,2]
[337682485,1725952933450,250.0,0.00011378,2]
[337682486,1725952935695,250.0,0.00011378,2]
[337682487,1725952954982,743.33,0.00011388,2]
[337682488,1725953013464,1000.0,0.00011365,2]
[337682497,1725953077756,250.0,0.00011362,2]
[337682500,1725953102676,150.0,0.00011047,2]
[337682501,1725953103221,150.0,0.00011092,2]
[337682502,1725953103375,150.0,0.00011137,2]
[337682503,1725953103676,150.0,0.00011183,2]
[337682504,1725953104019,150.0,0.00011228,2]
[337682505,1725953104384,150.0,0.00011274,2]
[337682506,1725953104812,150.0,0.00011319,2]
[337682507,1725953105090,150.0,0.00011365,2]
[337682509,1725953107582,200.0,0.00012006,2]
[337682510,1725953109784,150.0,0.0001141,2]
[337682511,1725953110139,150.0,0.00011456,2]
[337682512,1725953110525,150.0,0.00011501,2]
[337682513,1725953110858,150.0,0.00011547,2]
[337682514,1725953111222,150.0,0.00011592,2]
[337682515,1725953111585,150.0,0.00011638,2]
[337682516,1725953111900,150.0,0.00011683,2]
[337682517,1725953112234,150.0,0.00011728,2]
[337682518,1725953112579,150.0,0.00011774,2]
[337682519,1725953112928,150.0,0.00011819,2]
[337682520,1725953113491,150.0,0.00011865,2]
[337682521,1725953113558,150.0,0.0001191,2]
[337682522,1725953113895,150.0,0.00011956,2]
[337682523,1725953114218,150.0,0.00012001,2]
[337682524,1725953118193,150.0,0.00011047,2]
[337682525,1725953118551,150.0,0.00011169,2]
[337682526,1725953118873,150.0,0.00011292,2]
[337682527,1725953119192,150.0,0.00011415,2]
[337682528,1725953119523,150.0,0.00011538,2]
[337682529,1725953119870,150.0,0.0001166,2]
[337682530,1725953120160,150.0,0.00011783,2]
[337682531,1725953120477,150.0,0.00011906,2]
[337682533,1725953125097,150.09638213,0.00011047,2]
[337682534,1725953128549,150.0,0.00011047,2]
[337682535,1725953129171,150.0,0.00011134,2]
[337682536,1725953129245,150.0,0.00011222,2]
[337682537,1725953129552,150.0,0.0001131,2]
[337682538,1725953129837,150.0,0.00011397,2]
[337682539,1725953130166,150.0,0.00011485,2]
[337682540,1725953130498,150.0,0.00011573,2]
[337682541,1725953130830,150.0,0.0001166,2]
[337682542,1725953131138,150.0,0.00011748,2]
[337682543,1725953131465,150.0,0.00011836,2]
[337682544,1725953131785,150.0,0.00011923,2]
[337682545,1725953135001,150.0,0.00011047,2]
[337682546,1725953135364,150.0,0.0001166,2]
[337682548,1725953140065,150.11408885,0.00011047,2]
[337682549,1725953142076,150.0,0.00011047,2]
[337682550,1725953144652,150.10532286,0.00011047,2]
[337682551,1725953146753,150.0,0.00011047,2]
[337682552,1725953147127,150.0,0.00011292,2]
[337682553,1725953147451,150.0,0.00011538,2]
[337682554,1725953147865,150.0,0.00011783,2]
[337682556,1725953155088,150.0,0.00011047,2]
[337682557,1725953157306,150.15,0.00010959,2]
[337682558,1725953162049,160.8147084,9e-05,2]
[337682560,1725953185091,157.95,0.00011283,2]
[337682561,1725953185868,222.8685,0.00011999,2]
[337682563,1725953197582,500.0,0.00011267,2]
[337682564,1725953200332,150.04,0.00011267,2]
[337682565,1725953200545,150.04,0.00011286,2]
[337682566,1725953200742,150.04,0.00011305,2]
[337682567,1725953200972,150.04,0.00011323,2]
[337682569,1725953204174,172.99,9.014e-05,2]
[337682570,1725953210963,670.74971246,0.00011999,2]
[337682574,1725953249017,157.02418448,0.00012,2]
[337682575,1725953250182,1569.82274795,0.00012,2]
[337682576,1725953250490,1200.0,0.000116,4]
[337682577,1725953252589,2400.0,0.000117,4]
[337682578,1725953254694,3600.0,0.000118,4]
[337682579,1725953256785,4800.0,0.000119,4]
[337682580,1725953278467,1265.1,0.0001,2]
[337682581,1725953289396,179.08716711,0.00011999,2]
[337682582,1725953351442,200.0,0.00011271,2]
[337682584,1725953356105,-150.0,0.00012011,2]
[337682587,1725953356151,-150.0,0.00012028,2]
[337682589,1725953356195,-150.0,0.00012028,2]
[337682592,1725953356249,-150.0,0.00012047,2]
[337682593,1725953356293,-150.0,0.00012092,2]
[337682594,1725953356340,-3937.15,0.00012098,2]
[337682595,1725953356388,-1305.16552377,0.00012098,2]
[337682596,1725953356451,-1928.11447623,0.00012098,2]
[337682597,1725953356496,-4064.20104754,0.00012098,2]
[337682598,1725953356544,-251.25895246,0.00012098,2]
[337682599,1725953356586,-1963.54518996,0.00012098,2]
[337682600,1725953366775,945.53,9.422e-05,2]
[337682601,1725953367119,945.53,0.00011686,2]
[337682602,1725953380965,-1281.02481004,0.00012098,2]